Cogmind - Beta 15 @@@ ROGUE MODE // 2025.10.19 @ 20:10:11 Player: carrera Result: Destroyed by GA-4GK(R) with Subdweller Laser Performance ------------- Evolutions (0) 0 Regions Visited (2) 400 Robots Destroyed (14) 70 Value Destroyed (284) 284 Prototype IDs (0) 0 Alien Tech Used (0) 0 Bonus (0) 0 TOTAL SCORE: 754 Bonus ------- None Cogmind --------- Core Integrity 0/250 Matter 19/500 Energy 100/100 System Corruption 0% Temperature Cool (6) Movement Core (1400) Ox27 Location -10/Subcaves Parts ------- > --- POWER (1) -------- (None) > --- PROPULSION (2) --- Light Treads > --- UTILITY (2) ------ Huge Storage Unit High-capacity Matter Pod > --- WEAPON (2) ------- (None) > --- INVENTORY (25) --- Light Ion Engine Aluminum Leg Aluminum Leg Aluminum Leg Wheel Hover Unit Hover Unit Heat Sink Small Storage Unit Targeting Computer Targeting Computer ECM Suite Medium Laser Small Laser Subdweller Laser Light Assault Rifle Peak State ------------ > --- POWER ------------ Ion Engine > --- PROPULSION ------- Light Treads Subdweller Monowheel > --- UTILITY ---------- Huge Storage Unit ECM Suite > --- WEAPON ----------- Assault Rifle Assault Rifle > --- INVENTORY -------- Light Ion Engine Light Treads Aluminum Leg Aluminum Leg Aluminum Leg Wheel Wheel Hover Unit Hover Unit Heat Sink Small Storage Unit High-capacity Matter Pod Targeting Computer Targeting Computer Medium Laser Small Laser Subdweller Laser Light Assault Rifle Battle Rifle Grenade Launcher Grenade Launcher [Rating: 10] Favorites ----------- Power Ion Engine Engine Ion Engine Propulsion Wheel Treads Light Treads Leg Aluminum Leg Wheel Wheel Utility Huge Storage Unit Device ECM Suite Storage Huge Storage Unit Processor Signal Interpreter Weapon Assault Rifle Energy Gun Medium Laser Ballistic Gun Assault Rifle Launcher Grenade Launcher Build | -11 -10 -10 ------- Run | Yrd Mat Sub Slots Evolved . | . . . Power . | . . . Propulsion . | . . . Utility . | . . . Weapon . | . . . Parts Attached 21 | 6 11 4 Power 2 | 1 1 . Engine 2 | 1 1 . Core . | . . . Reactor . | . . . Propulsion 7 | 2 4 1 Treads 2 | . 2 . Leg 2 | 2 . . Wheel 3 | . 2 1 Hover . | . . . Flight . | . . . Utility 5 | 1 3 1 Device 1 | . 1 . Storage 3 | 1 1 1 Processor 1 | . 1 . Hackware . | . . . Protection . | . . . Artifact . | . . . Weapon 7 | 2 3 2 Energy Gun 1 | 1 . . Energy Cannon . | . . . Ballistic Gun 4 | 1 1 2 Ballistic Cannon . | . . . Launcher 2 | . 2 . Special Weapon . | . . . Impact Weapon . | . . . Slashing Weapon . | . . . Piercing Weapon . | . . . Special Melee Weapon . | . . . Unidentified Prototypes . | . . . Parts Lost 10 | . 1 9 Power 1 | . . 1 Propulsion 4 | . 1 3 Utility . | . . . Weapon 5 | . . 5 Highest Loss Streak 5 | . 1 5 To Critical Strikes . | . . . Average Backups 13 | 3 13 18 Power . | . 1 1 Propulsion 5 | 2 5 6 Utility 3 | . 3 5 Weapon 3 | . 3 5 Tool/Special . | . . . Unused Backups 10 | . . 10 Power 1 | . . 1 Propulsion 4 | . . 4 Utility 3 | . . 3 Weapon 2 | . . 2 Tool/Special . | . . . Average Slot Usage (%) 97 | . 97 96 Engine 13 | . 14 13 Treads 9 | . 2 24 Leg 1 | . 2 . Wheel 16 | . 22 1 Device 11 | . 11 11 Storage 14 | . 14 16 Energy Gun 4 | . 6 . Ballistic Gun 19 | . 17 25 Launcher 3 | . 4 . Peak Build Rating 10 | 6 8 10 Average Rating 7 | 4 7 8 On Entrance 4 | . 6 8 Naked Turns . | . . . Heaviest Build 95 | 12 92 95 Greatest Support 40 | 20 40 40 Greatest Overweight (x) 31 | 2 4 31 Average Overweight (x) 2 | . 3 2 Largest Inventory Capacity 25 | 8 25 25 Average Capacity 22 | 7 23 25 Most Carried 21 | 6 17 21 Average Carried 13 | 4 13 18 Final Capacity 25 | 8 25 25 Final Carried 17 | 6 17 16 Class Distribution -------------------- 100% | Mutant Dominant Class ---------------- Mutant | -10/Materials Mutant | -10/Subcaves Resources | -11 -10 -10 ----------- Run | Yrd Mat Sub Matter Collected 448 | 216 97 135 Remotely . | . . . Salvage Created 235 | . 124 111 Parts 21 | . 16 5 Haulers Intercepted . | . . . Recyclers Shooed . | . . . Parts Field Recycled . | . . . Retrieved Matter . | . . . Parts Self-Destructed 5 | . . 5 Prevented . | . . . Kills | -11 -10 -10 ------- Run | Yrd Mat Sub Combat Hostiles Destroyed 11 | . 9 2 Guns 2 | . . 2 AOE 9 | . 9 . Classes Destroyed 6 | . 5 1 Worker 1 | . 1 . Builder 1 | . 1 . Watcher 1 | . 1 . Swarmer 6 | . 6 . Grunt 3 | . 3 . Subdweller 2 | . . 2 Best Kill Streak 5 | . 5 1 Combat Bots Only 4 | . 4 1 Max Kills in Single Turn 2 | . 2 1 Gunslinging . | . . . Exploded 2 | . 2 . Melee . | . . . Uniques/NPCs Destroyed . | . . . Combat | -11 -10 -10 -------- Run | Yrd Mat Sub Hostile Shots Fired 103 | . 50 53 Missed 33 | . 17 16 Hits 70 | . 33 37 Projectile 70 | . 33 37 Damage Taken 1274 | . 262 1012 Core 256 | . 44 212 Absorbed by Shields . | . . . Core Remaining (%) 100 | 100 . . Volleys Fired 40 | . 13 27 Largest 2 | . 2 2 Hottest 70 | . 70 50 Shots Fired 72 | . 18 54 Gun 61 | . 9 52 Cannon . | . . . Launcher 11 | . 9 2 Special . | . . . Kinetic 59 | . 7 52 Thermal 2 | . 2 . Explosive 11 | . 9 2 Electromagnetic . | . . . Robot Hit Streak 41 | . 2 41 Robot Miss Streak 4 | . 2 4 Penetration Max . | . . . Secondary Targets . | . . . Shots Hit Robots 50 | . 3 47 Core Hits 26 | . 22 4 Critical Kills . | . . . Critical Parts Destroyed . | . . . Critical Strikes 1 | . 1 . Burn 1 | . 1 . Melee Attacks . | . . . Impact . | . . . Slashing . | . . . Piercing . | . . . Sneak Attacks . | . . . Combat Hostiles . | . . . Follow-up Attacks . | . . . Damage Inflicted 767 | . 587 180 Guns 159 | . 39 120 Cannons . | . . . Explosions 608 | . 548 60 Melee . | . . . Ramming . | . . . Kinetic 147 | . 27 120 Thermal 12 | . 12 . Explosive 608 | . 548 60 Electromagnetic . | . . . Impact . | . . . Slashing . | . . . Piercing . | . . . Highest Corruption . | . . . Average Corruption . | . . . Corruption Purged . | . . . Corruption Blocked . | . . . Overload Shots . | . . . Overflow Damage 3 | . 3 . Projectiles . | . . . Explosions 3 | . 3 . Melee . | . . . Knockbacks . | . . . Impact . | . . . Kinetic . | . . . Secondary . | . . . Self-Inflicted Damage 45 | . . 45 Shots 1 | . . 1 Rammed . | . . . Targets Rammed . | . . . Kicked . | . . . Crushed . | . . . Highest Temperature 9 | . 9 . Average Temperature 5 | . 5 . Received Heat Transfer 312 | . 6 306 Siege Activations . | . . . Martial Activations . | . . . Shielding Activations . | . . . Robots Disrupted . | . . . Combat Hostiles . | . . . Robots Corrupted . | . . . Combat Hostiles . | . . . Parts Fried . | . . . Impact Corruptions . | . . . Robots Melted . | . . . Combat Hostiles . | . . . Parts Melted . | . . . Heat Transferred 111 | . 111 . Parts Sabotaged . | . . . Parts Stolen . | . . . Parts Stripped . | . . . Power Chain Reactions 1 | . 1 . Alert | -11 -10 -10 ------- Run | Yrd Mat Sub Maximum Alert Level . | . . . Low Security (%) 100 | 100 100 . Level 1 . | . . . Level 2 . | . . . Level 3 . | . . . Level 4 . | . . . Level 5 . | . . . High Security . | . . . Max Security . | . . . Peak Influence 146 | . 146 . Initial . | . . . Average 41 | . 49 . Influence Increases 310 | . 310 . Destroy 0b10 Robot/C 180 | . 180 . Destroy 0b10 Robot/NC 15 | . 15 . Destroy Leader 42 | . 42 . Successful Hack 3 | . 3 . Disable Machine 30 | . 30 . Destroy Structure 25 | . 25 . Partial Spotted 15 | . 15 . Influence Decreases 310 | . 188 122 Entered New Map 59 | . . 59 Time Decay 241 | . 178 63 Lost Part 10 | . 10 . Squads Dispatched 3 | . 3 . Investigation . | . . . Extermination . | . . . Reinforcement 3 | . 3 . Assault . | . . . Garrison . | . . . Intercept . | . . . Searches Triggered . | . . . Construction Impeded . | . . . Haulers Reinforced . | . . . Active Scanning Responses . | . . . Cargo Convoy Interrupts . | . . . Stealth | -11 -10 -10 --------- Run | Yrd Mat Sub Distress Signals . | . . . Communications Jammed . | . . . Distress Signals . | . . . Times Spotted 17 | . 13 4 Peak Tracking Total 3 | . 3 2 Tactical Retreats 2 | . 2 . Traps | -11 -10 -10 ------- Run | Yrd Mat Sub Traps Triggered . | . . . Indirectly . | . . . Trap Hack Attempts . | . . . Triggered . | . . . Disarmed . | . . . Reprogrammed . | . . . Reused . | . . . Traps Extracted . | . . . Installed . | . . . Triggered . | . . . Machines | -11 -10 -10 ---------- Run | Yrd Mat Sub Machines Disabled 2 | . 2 . Max in Single Turn 1 | . 1 . Machines Repaired . | . . . Machines Dismantled . | . . . Machines Sabotaged . | . . . Overloaded Fab Kills . | . . . Hacking | -11 -10 -10 --------- Run | Yrd Mat Sub Machines Accessed 2 | . 2 . Terminals 2 | . 2 . Fabricators . | . . . Repair Stations . | . . . Recycling Units . | . . . Scanalyzers . | . . . Garrison Access . | . . . Total Hacks 7 | . 7 . Successful 3 | . 3 . Failed 4 | . 4 . Catastrophic 1 | . 1 . Database Lockouts . | . . . Manual . | . . . Terminals 7 | . 7 . Fabricators . | . . . Repair Stations . | . . . Recycling Units . | . . . Scanalyzers . | . . . Garrison Access . | . . . Terminal Hacks 3 | . 3 . Alert Level 1 | . 1 . Maintenance Status 1 | . 1 . Hauler Manifests 1 | . 1 . Fabricator Hacks . | . . . Repair Station Hacks . | . . . Recycling Unit Hacks . | . . . Scanalyzer . | . . . Garrison Access Hacks . | . . . Unauthorized Hacks . | . . . Terminals . | . . . Fabricators . | . . . Repair Stations . | . . . Recycling Units . | . . . Scanalyzers . | . . . Garrison Access . | . . . Data Cores Recovered . | . . . Used . | . . . Hacking Detections 2 | . 2 . Full Trace Events 1 | . 1 . Feedback Events . | . . . Feedback Blocked . | . . . Robot Schematics Acquired . | . . . Robots Built . | . . . Authchips . | . . . Time . | . . . Total Robot Build Rating . | . . . Part Schematics Acquired . | . . . Parts Built . | . . . Authchips . | . . . Time . | . . . Total Part Build Rating . | . . . Parts Repaired . | . . . Time . | . . . Parts Recycled . | . . . Recycled Matter . | . . . Retrieved Matter . | . . . Retrieved Components . | . . . Parts Scanalyzed . | . . . Part Schematics Acquired . | . . . Parts Damaged . | . . . Bothacking | -11 -10 -10 ------------ Run | Yrd Mat Sub Used RIF Installer . | . . . Robots Hacked . | . . . Non-combat . | . . . Combat . | . . . Robot Hacks Applied . | . . . Relay Couplers Released . | . . . Fabnet Peak Effective % . | . . . Robots Rewired . | . . . Allies Hacked . | . . . Hacks Repelled . | . . . Allies | -11 -10 -10 -------- Run | Yrd Mat Sub Total Allies . | . . . Largest Group . | . . . Highest-Rated Group . | . . . Highest-Rated Ally . | . . . Total Orders . | . . . Ally Attacks . | . . . Total Damage . | . . . Kills . | . . . Allies Corrupted . | . . . Allies Melted . | . . . Intel | -11 -10 -10 ------- Run | Yrd Mat Sub Active Infowar (turns) 831 | . 600 231 ECM 831 | . 600 231 Robot Analysis Total . | . . . Derelict Logs Recovered . | . . . Drone Launches . | . . . Drone Recoveries . | . . . Exploration | -11 -10 -10 ------------- Run | Yrd Mat Sub Turns Passed 1119 | 137 708 274 Spaces Moved 585 | 112 419 54 Core 29 | 28 . 1 Treads 70 | . 19 51 Legs 121 | 84 37 . Wheels 365 | . 363 2 Hover . | . . . Flight . | . . . Fastest Speed 50 | 50 120 131 Average Speed 156 | 109 146 336 Slowest Speed 1600 | 150 320 1600 Overloaded Moves . | . . . Propulsion Burnouts . | . . . Robots Hopped . | . . . Potential Cave-ins . | . . . Cave-ins Triggered . | . . . Exploration Rate (%) 23 | 5 60 4 Regions Visited 2 Branch Regions 1 Pre-discovered Areas . | . . . Known Exits Taken . | . . . Unknown Exits Taken 2 | 1 1 . Scrap Searched . | . . . Spaces Dug 6 | . 6 . Terrain Destroyed 34 | . 24 10 Melee . | . . . Projectile . | . . . AOE 34 | . 24 10 Terrain Rammed . | . . . Walls Destroyed . | . . . Machines Disabled . | . . . Actions | -11 -10 -10 --------- Run | Yrd Mat Sub Total 709 | 123 491 95 Wait 30 | . 30 . Move 583 | 111 418 54 Hop . | . . . Pick Up 22 | 6 12 4 Fast Attach 8 | 6 2 . Attach 6 | . 1 5 Detach 1 | . 1 . Swap 18 | . 13 5 Drop 1 | . 1 . Fire 40 | . 13 27 Melee . | . . . Ram . | . . . Kick . | . . . Crush . | . . . Escape Stasis . | . . . Rewire . | . . . Trap . | . . . Miscellaneous . | . . . Route ------- -11/Scrapyard -10/Materials (discovered 4 exits: [*Mat x2] / [*Min] / [*Sub]) -10/Subcaves History --------- Turn | Location | Event 7 | -11/Scrapyard | Discovered new exit (range 16) 138 | -11/Scrapyard | Entered Materials 304 | -10/Materials | Build established: Mutant 547 | -10/Materials | Discovered new exit (range 10) 644 | -10/Materials | Discovered new exit (range 15) 789 | -10/Materials | Discovered new exit (range 9) 810 | -10/Materials | Discovered new exit (range 9) 846 | -10/Materials | Entered Subcaves 847 | -10/Subcaves | Approached by a straggling Scientist 999 | -10/Subcaves | Shifting Twisted Machinery released Battle Cannon 1061 | -10/Subcaves | Core integrity fell below 50% 1093 | -10/Subcaves | Lost 4 parts (2n2w) 1102 | -10/Subcaves | Core integrity fell below 20% 1120 | -10/Subcaves | Destroyed by GA-4GK(R) with Subdweller Laser Last Messages --------------- 00977_ Subatomizers dissect the Wheel. 00981_ Acquired 24 matter. 00987_ Subatomizers dissect the Wheel. 00987_ Acquired Wheel. 00988_ 5T-KGI(R) destroyed. Battle Cannon falls loose from the Twisted Machinery. 01013_ Subatomizers dissect the Disposable Heat Sink. 01023_ Acquired Sub. Monowheel. 01027_ Acquired 57 matter. 01036_ Wheel destroyed. 01050_ Assault Rifle destroyed. 01052_ Sub. Monowheel destroyed. 01062_ Assault Rifle destroyed. 01068_ BY-DC7(R) affixes Scrap Shield Fragment to Scrap Shield. 01097_ Battle Rifle destroyed. 01097_ Lgt. Treads destroyed. 01107_ Grenade Launcher destroyed. 01110_ BY-DC7(R) affixes Scrap Shield Fragment to Scrap Shield. 01112_ Ion Engine destroyed. 01115_ Subatomizers dissect the Disposable Heat Sink. Map ----- +----------------------------------------------------+ | ?????????????????????????????????????????????????? | | ?????????????????????????????????????????????????? | | ?????????????????????????????????????????????????? | | ?????????????????????????????????????????????????? | | ?????????????????????????????????????????????????? | | ?????????????????????????????????????????????????? | | ?????????????????????????????????????????????????? | | ?????????????????????????????????????????????????? | | ?????????????????????????????????????????????????? | | ?????????????????????????????????????????????????? | | ?????????????????????????????????????????????????? | | ?????????????????????????????????????????????????? | | ?????????????????????????????????????????????????? | | ?????????????????????????#???????????????????????? | | ???????????????????????? ???????????????????????? | | ??????????????????????#"" ???????????????????????? | | ??????????????????????"" ###????????????????????? | | ????????????????????###""" ?????????????????????? | | ????????????????????? """ ?????????????????????? | | ?????????????????????? R" ?????????????????????? | | ??????????????????????? #????"????????????????? | | ??????????????????????## ####""????????????????? | | ??????????????????????#; # """" #??????????????? | | ??????????????????????# """ #???????????????? | | ???????????##?????????# ; R "" #????????????????? | | ????????"### ?????##### @ "]#????????????????? | | ????????"""" #????# " ! " ""##????????????????? | | ????????""" ###?## [ " # ##?????????????????? | | ??????##""" # # " ###??????????????????? | | ??????"" " """ ##?????????????????? | | ???????????# "" #?????????????????? | | ???????????### ! ####" ###?????????????????? | | ?????????????#### "#?##! ##?##????????????????? | | ????????????????## ""#??# ### #????????????????? | | ????????????????# "" ##### #????????????????? | | ????????????????##"" # #????????????????? | | ????????????????#" #"" #????????????????? | | ???????????????#"""##"""" #????????????????? | | ???????????????#"" #### """ #????????????????? | | ???????????????#""" ??### "" ##????????????????? | | ?????????????????" ????### #?????????????????? | | ??????????????????????????# #?????????????????? | | ??????????????????????????######?????????????????? | | ?????????????????????????????????????????????????? | | ?????????????????????????????????????????????????? | | ?????????????????????????????????????????????????? | | ?????????????????????????????????????????????????? | | ?????????????????????????????????????????????????? | | ?????????????????????????????????????????????????? | | ?????????????????????????????????????????????????? | +----------------------------------------------------+ Best States ------------- Heat Dissipation 25 Energy Generation 10 Energy Capacity 250 Matter Stores 256 Matter Capacity 500 Sight Range 16 Terrain Scan Density 10 ECM Strength 1 Evasion (%) 55 Recoil Reduction 2 Item Schematics ----------------- None Robot Schematics ------------------ None Fabricated ------------ Nothing Repaired ---------- Nothing Alien Tech Used ----------------- None Achievements -------------- None Challenges ------------ None Game ------ Seed PotentialDirtyManipulator Manual? 0 Play Time 00:18:41 Cumulative 23.6 hours Start 2025.10.19 @ 19:54:20 End 2025.10.19 @ 20:10:11 Sessions 1 Manual Loads 0 Difficulty Rogue Special Mode None Game No. 30 Rogue 30 Adventurer 0 Explorer 0 Win Type - Total 0 Types 0/0/0/0/0/0/0/0/0/0 Lore% 24 Gallery% 24 Achievement% 21 Wizard Run 0 Options --------- Layout 0 ASCII 0 Keyboard 1 Movement Vi Keybinds 0 Fullscreen 2 Font 18/SmallcapsGlow Map View 76x50 Zoom Use 0% Tactical HUD 1 Map Filters NONE Filters NONE Steam 0 RUN: 0ca68041-8dfe-4149-865a-124f79ae40a9